Cogmind - Beta 16.1 @@@ ROGUE MODE // 2026.02.18 @ 20:15:39 Player: SunShine214 Result: Destroyed by D-53 Grenadier with Mini Grenade Launcher Performance ------------- Evolutions (0) 0 Regions Visited (2) 400 Robots Destroyed (22) 110 Value Destroyed (301) 301 Prototype IDs (2) 40 Alien Tech Used (0) 0 Bonus (0) 0 TOTAL SCORE: 851 Bonus ------- None Cogmind --------- Core Integrity 0/250 Matter 230/300 Energy 50/100 System Corruption 0% Temperature Cool (0) Movement Core (100) Ox1 Location -10/Mines Parts ------- > --- POWER (1) -------- (None) > --- PROPULSION (2) --- (None) > --- UTILITY (2) ------ Small Storage Unit Experimental Sensor Array > --- WEAPON (2) ------- (None) > --- INVENTORY (8) ---- Flight Unit Flight Unit Flight Unit Flight Unit Autogun Grenade Launcher Mining Laser Peak State ------------ > --- POWER ------------ Heavy Ion Engine > --- PROPULSION ------- Light Treads Light Treads > --- UTILITY ---------- Small Storage Unit Experimental Sensor Array > --- WEAPON ----------- Autogun Rocket Launcher > --- INVENTORY -------- Flight Unit Flight Unit Flight Unit Flight Unit Autogun EMP Blaster Grenade Launcher Mining Laser [Rating: 20] Favorites ----------- Power Heavy Ion Engine Engine Heavy Ion Engine Propulsion Light Treads Treads Light Treads Utility Small Storage Unit Device Seismic Detector Storage Small Storage Unit Processor Targeting Computer Weapon Medium Laser Energy Gun Medium Laser Ballistic Gun Autogun Launcher Grenade Launcher Build | -11 -10 -10 ------- Run | Yrd Mat Min Slots Evolved . | . . . Power . | . . . Propulsion . | . . . Utility . | . . . Weapon . | . . . Parts Attached 15 | 7 5 3 Power 2 | 1 1 . Engine 2 | 1 1 . Core . | . . . Reactor . | . . . Propulsion 2 | 2 . . Treads 2 | 2 . . Leg . | . . . Wheel . | . . . Hover . | . . . Flight . | . . . Utility 5 | 2 2 1 Device 2 | 1 . 1 Storage 2 | 1 1 . Processor 1 | . 1 . Hackware . | . . . Protection . | . . . Artifact . | . . . Weapon 6 | 2 2 2 Energy Gun 2 | 2 . . Energy Cannon . | . . . Ballistic Gun 1 | . 1 . Ballistic Cannon . | . . . Launcher 3 | . 1 2 Special Weapon . | . . . Impact Weapon . | . . . Slashing Weapon . | . . . Piercing Weapon . | . . . Special Melee Weapon . | . . . Unidentified Prototypes 2 | . 1 1 Parts Lost 7 | . 1 6 Power 1 | . . 1 Propulsion 2 | . . 2 Utility . | . . . Weapon 4 | . 1 3 Highest Loss Streak 6 | . 1 6 To Critical Strikes . | . . . Average Backups 6 | 2 7 7 Power . | . . . Propulsion 3 | 1 3 4 Utility . | . . . Weapon 2 | 1 2 3 Tool/Special . | . . . Unused Backups 13 | . 6 7 Power 1 | . 1 . Propulsion 8 | . 4 4 Utility 1 | . . 1 Weapon 3 | . 1 2 Tool/Special . | . . . Average Slot Usage (%) 96 | . 94 98 Engine 14 | . 14 14 Treads 27 | . 28 26 Device 5 | . 8 1 Storage 14 | . 14 14 Processor 8 | . 5 12 Energy Gun 9 | . 15 . Ballistic Gun 6 | . 1 13 Launcher 9 | . 5 14 Peak Build Rating 20 | 7 11 20 Average Rating 8 | 5 7 12 On Entrance 6 | . 7 11 Avg Prop Armor Cover (%) . | . . . Naked Turns . | . . . Heaviest Build 21 | 13 19 21 Greatest Support 40 | 40 40 40 Greatest Overweight (x) . | . . . Average Overweight (x) . | . . . Largest Inventory Capacity 8 | 8 8 8 Average Capacity 7 | 7 8 8 Most Carried 8 | 5 8 8 Average Carried 6 | 3 7 7 Final Capacity 8 | 8 8 8 Final Carried 8 | 5 8 7 Class Distribution -------------------- 100% | Mutant Dominant Class ---------------- Mutant | -10/Materials Mutant | -10/Mines Resources | -11 -10 -10 ----------- Run | Yrd Mat Min Matter Collected 360 | 270 70 20 Remotely . | . . . Salvage Created 505 | 163 260 82 Parts 39 | 9 26 4 Haulers Intercepted 1 | . 1 . Recyclers Shooed 1 | 1 . . Parts Field Recycled . | . . . Retrieved Matter . | . . . Parts Self-Destructed . | . . . Prevented . | . . . Parts Restored . | . . . Kills | -11 -10 -10 ------- Run | Yrd Mat Min Combat Hostiles Destroyed 11 | . 10 1 Guns 7 | . 7 . AOE 4 | . 3 1 Classes Destroyed 9 | 2 5 2 Worker 1 | . . 1 Builder 1 | . 1 . Tunneler 4 | 4 . . Hauler 1 | . 1 . Recycler 2 | 1 . 1 Watcher 2 | . 2 . Swarmer 8 | . 8 . Grunt 2 | . 2 . Demolisher 1 | . . 1 Best Kill Streak 5 | 5 4 2 Combat Bots Only 3 | . 3 1 Max Kills in Single Turn 3 | 1 3 1 Gunslinging 1 | . 1 . Exploded 2 | . 2 1 Melee . | . . . Uniques/NPCs Destroyed . | . . . Combat | -11 -10 -10 -------- Run | Yrd Mat Min Hostile Shots Fired 66 | . 49 17 Missed 18 | . 18 . Hits 48 | . 31 17 Projectile 48 | . 31 17 AOE 17 | . . 17 Damage Taken 1068 | 39 274 755 Core 268 | . 42 226 Absorbed by Shields . | . . . Core Remaining (%) 100 | 100 . . Volleys Fired 49 | 8 32 9 Largest 2 | 2 2 2 Hottest 90 | 90 90 56 Shots Fired 76 | 16 47 13 Gun 64 | 16 44 4 Cannon . | . . . Launcher 12 | . 3 9 Special . | . . . Kinetic 4 | . . 4 Thermal 40 | 8 32 . Explosive 7 | . 3 4 Electromagnetic 25 | 8 12 5 Robot Hit Streak 8 | 5 8 5 Robot Miss Streak 3 | 1 2 3 Penetration Max . | . . . Secondary Targets 1 | . 1 . Max Gunslinging Chain 1 | . 1 . Shots Hit Robots 48 | 12 27 9 Core Hits 28 | 5 17 6 Critical Kills . | . . . Critical Parts Destroyed . | . . . Critical Strikes 5 | 3 2 . Burn 3 | 1 2 . Corrupt 2 | 2 . . Melee Attacks . | . . . Impact . | . . . Slashing . | . . . Piercing . | . . . Sneak Attacks . | . . . Combat Hostiles . | . . . Follow-up Attacks . | . . . Damage Inflicted 1156 | 212 709 235 Guns 530 | 138 363 29 Cannons . | . . . Explosions 615 | 74 340 201 Melee . | . . . Ramming 11 | . 6 5 Kinetic 29 | . . 29 Thermal 658 | 99 559 . Explosive 100 | . 22 78 Electromagnetic 358 | 113 122 123 Impact . | . . . Slashing . | . . . Piercing . | . . . Highest Corruption . | . . . Average Corruption . | . . . Corruption Purged . | . . . Corruption Blocked . | . . . Overload Shots . | . . . Overflow Damage 64 | . 45 19 Projectiles . | . . . Explosions 64 | . 45 19 Melee . | . . . Knockbacks 1 | . 1 . Impact 1 | . 1 . Kinetic . | . . . Secondary . | . . . Self-Inflicted Damage 109 | 39 . 70 Shots 9 | 1 . 8 Rammed 3 | . 3 . Targets Rammed 4 | . 3 1 Kicked . | . . . Crushed 1 | . . 1 Highest Temperature 366 | 98 366 36 Average Temperature 80 | 42 99 23 Received Heat Transfer 66 | . 66 . Effects 3 | . 3 . Shutdowns 1 | . 1 . Energy Bleed 2 | . 2 . Siege Activations . | . . . Martial Activations . | . . . Shielding Activations . | . . . Robots Disrupted . | . . . Combat Hostiles . | . . . Robots Corrupted . | . . . Combat Hostiles . | . . . Parts Fried . | . . . Impact Corruptions . | . . . Robots Melted . | . . . Combat Hostiles . | . . . Parts Melted 2 | 1 1 . Heat Transferred 1249 | 198 1051 . Parts Sabotaged . | . . . Parts Stolen . | . . . Parts Stripped . | . . . Power Chain Reactions 3 | 2 1 . Alert | -11 -10 -10 ------- Run | Yrd Mat Min Maximum Alert Level . | . . . Low Security (%) 100 | 100 100 100 Level 1 . | . . . Level 2 . | . . . Level 3 . | . . . Level 4 . | . . . Level 5 . | . . . High Security . | . . . Max Security . | . . . Peak Influence 115 | 10 115 20 Initial 12 | . . 12 Average 22 | 1 43 1 Influence Increases 366 | 25 299 42 Destroy 0b10 Robot/C 220 | . 200 20 Destroy 0b10 Robot/NC 55 | 25 20 10 Destroy Leader 36 | . 36 . Disable Machine 30 | . 30 . Destroy Structure 25 | . 13 12 Influence Decreases 361 | 25 268 68 Entered New Map 19 | . . 19 Time Decay 256 | 25 214 17 Lost Part 42 | . 10 32 Purge Threat 44 | . 44 . Squads Dispatched . | . . . Investigation . | . . . Extermination . | . . . Reinforcement . | . . . Assault . | . . . Garrison . | . . . Intercept . | . . . Searches Triggered . | . . . Construction Impeded . | . . . Haulers Reinforced . | . . . Active Scanning Responses . | . . . Cargo Convoy Interrupts . | . . . Stealth | -11 -10 -10 --------- Run | Yrd Mat Min Distress Signals 2 | . 2 . Communications Jammed . | . . . Distress Signals . | . . . Times Spotted 17 | . 15 2 Peak Tracking Total 6 | . 6 2 Tactical Retreats . | . . . Traps | -11 -10 -10 ------- Run | Yrd Mat Min Traps Triggered . | . . . Indirectly . | . . . Trap Hack Attempts . | . . . Triggered . | . . . Disarmed . | . . . Reprogrammed . | . . . Reused . | . . . Traps Extracted . | . . . Installed . | . . . Triggered . | . . . Machines | -11 -10 -10 ---------- Run | Yrd Mat Min Machines Disabled 2 | . 2 . Max in Single Turn 2 | . 2 . Machines Repaired . | . . . Machines Dismantled . | . . . Machines Sabotaged . | . . . Overloaded Fab Kills . | . . . Hacking | -11 -10 -10 --------- Run | Yrd Mat Min Machines Accessed 4 | . 4 . Terminals 4 | . 4 . Fabricators . | . . . Repair Stations . | . . . Recycling Units . | . . . Scanalyzers . | . . . Garrison Access . | . . . Total Hacks 6 | . 6 . Successful 2 | . 2 . Failed 4 | . 4 . Catastrophic . | . . . Database Lockouts . | . . . Manual 4 | . 4 . Terminals 6 | . 6 . Fabricators . | . . . Repair Stations . | . . . Recycling Units . | . . . Scanalyzers . | . . . Garrison Access . | . . . Terminal Hacks 2 | . 2 . Branch Access Points 1 | . 1 . Unreport Threat 1 | . 1 . Fabricator Hacks . | . . . Repair Station Hacks . | . . . Recycling Unit Hacks . | . . . Scanalyzer . | . . . Garrison Access Hacks . | . . . Unauthorized Hacks . | . . . Terminals . | . . . Fabricators . | . . . Repair Stations . | . . . Recycling Units . | . . . Scanalyzers . | . . . Garrison Access . | . . . Data Cores Recovered . | . . . Used . | . . . Hacking Detections 4 | . 4 . Full Trace Events . | . . . Feedback Events . | . . . Feedback Blocked . | . . . Robot Schematics Acquired . | . . . Robots Built . | . . . Authchips . | . . . Time . | . . . Total Robot Build Rating . | . . . Part Schematics Acquired . | . . . Parts Built . | . . . Authchips . | . . . Time . | . . . Total Part Build Rating . | . . . Part Studies Acquired . | . . . Parts Repaired . | . . . Time . | . . . Parts Recycled . | . . . Recycled Matter . | . . . Retrieved Matter . | . . . Retrieved Components . | . . . Parts Scanalyzed . | . . . Part Schematics Acquired . | . . . Parts Damaged . | . . . Bothacking | -11 -10 -10 ------------ Run | Yrd Mat Min Used RIF Installer . | . . . Robots Hacked . | . . . Non-combat . | . . . Combat . | . . . Robot Hacks Applied . | . . . Relay Couplers Released . | . . . Fabnet Peak Effective % . | . . . Robots Rewired . | . . . Allies Hacked . | . . . Hacks Repelled . | . . . Allies | -11 -10 -10 -------- Run | Yrd Mat Min Total Allies . | . . . Largest Group . | . . . Highest-Rated Group . | . . . Highest-Rated Ally . | . . . Total Orders . | . . . Ally Attacks . | . . . Total Damage . | . . . Kills . | . . . Allies Corrupted . | . . . Allies Melted . | . . . Intel | -11 -10 -10 ------- Run | Yrd Mat Min Active Infowar (turns) 386 | 19 323 44 Sensors 44 | . . 44 Seismic 342 | 19 323 . Robot Analysis Total . | . . . Derelict Logs Recovered 1 | . . 1 Drone Launches . | . . . Drone Recoveries . | . . . Exploration | -11 -10 -10 ------------- Run | Yrd Mat Min Turns Passed 1051 | 138 542 371 Spaces Moved 554 | 65 274 215 Core 4 | 4 . . Treads 550 | 61 274 215 Legs . | . . . Wheels . | . . . Hover . | . . . Flight . | . . . Fastest Speed 50 | 50 160 160 Average Speed 159 | 153 160 160 Slowest Speed 160 | 160 160 160 Overloaded Moves . | . . . Propulsion Burnouts . | . . . Robots Hopped . | . . . Potential Cave-ins . | . . . Cave-ins Triggered . | . . . Exploration Rate (%) 33 | 5 50 46 Regions Visited 2 Branch Regions 1 Pre-discovered Areas . | . . . Known Exits Taken 1 | . 1 . Unknown Exits Taken 1 | 1 . . Scrap Searched 1 | . . 1 Spaces Dug . | . . . Terrain Destroyed 33 | 5 13 15 Melee . | . . . Projectile . | . . . AOE 33 | 5 13 15 Terrain Rammed . | . . . Walls Destroyed . | . . . Machines Disabled . | . . . Actions | -11 -10 -10 --------- Run | Yrd Mat Min Total 652 | 84 337 231 Wait 6 | . 6 . Move 552 | 64 273 215 Hop . | . . . Pick Up 16 | 5 10 1 Fast Attach 8 | 7 1 . Attach 1 | . . 1 Detach . | . . . Swap 6 | . 4 2 Drop 10 | . 8 2 Fire 49 | 8 32 9 Melee . | . . . Ram . | . . . Kick . | . . . Crush 4 | . 3 1 Escape Stasis . | . . . Rewire . | . . . Trap . | . . . Miscellaneous . | . . . Route ------- -11/Scrapyard -10/Materials (discovered 3 exits: [*Mat x2] / *Min) -10/Mines History --------- Turn | Location | Event 7 | -11/Scrapyard | Discovered new exit (range 14) 139 | -11/Scrapyard | Entered Materials 149 | -10/Materials | Identified exit to Mines 310 | -10/Materials | Build established: Mutant 335 | -10/Materials | Discovered new exit (range 14) 425 | -10/Materials | Discovered new exit (range 14) 681 | -10/Materials | Entered Mines 798 | -10/Mines | Found a hidden stash of uninstalled traps 812 | -10/Mines | Received a Rocket Launcher from a helpful Derelict 897 | -10/Mines | Learned Materials terminal intel 978 | -10/Mines | Assembled infested the area 987 | -10/Mines | Found a damaged Exp. Sensor Array with a note attached 1008 | -10/Mines | Found Prototype Device 1008 | -10/Mines | Identified Exp. Sensor Array 1047 | -10/Mines | Core integrity fell below 50% 1049 | -10/Mines | Core integrity fell below 20% 1052 | -10/Mines | Destroyed by D-53 Grenadier with Mini Grenade Launcher Last Messages --------------- 01008_ Discarded Targeting Computer. 01008_ Acquired Prototype Device. 01008_ Identified Exp. Sensor Array. 01012_ K-01 Serf collects debris. 01018_ C-45 Heavy ARC bursts open, deploying its payload. 01018_ D-53 Grenadier unfolds itself. 01021_ K-01 Serf collects debris. 01035_ The unstable cave ceiling collapses. 01037_ Lgt. Treads destroyed. 01040_ Rocket Launcher destroyed. 01040_ Destroyed Rocket Launcher. 01041_ Autogun destroyed. 01043_ The unstable cave ceiling collapses. 01044_ D-53 Grenadier destroyed. 01045_ K-01 Serf collects debris. 01049_ The unstable cave ceiling collapses. 01050_ Hvy. Ion Engine destroyed. 01052_ The unstable cave ceiling collapses. 01052_ EMP Blaster destroyed. Map ----- +----------------------------------------------------+ | ???????????????????????????## #??????????#### | | ????????????????????????????# ##?????###### | | ???????????????????????????## ##??????# | | ???????????????????????????# ##???????# | | ???????????????????????????# ##???????# ##### | | ???????????????????????????# ###?????# #???## | | ???????????????????????????# ###?### #????# | | ??????????????????????????## ### #????# | | ???????????????????????#### ## ###????# | | ??????????????????????## #??????# | | ??????????????????????# #??????## | | ??????????????????????# ## #####???????? | | ?????????????????????## #### ##?????????? | | ?????????????????????# ##??# #?????????? | | ?????????????????????# ##???# #?????????? | | ?????????????????????## ##????## ##?????????? | | ??????????????????????## ##?????##?#??????????? | | ???????????????????????## ##?????# #??????????? | | ??????????###???????????# ###???# #??????????? | | ?????????## ???????????# ##### #??########? | | ?????????# ????????#### #??# ? ? | | ???????### #???##### #### #### #??# ? | | ??????? #?## ##??# ? #??# ? | | ?????????# ## ###???###### #?## # | | ?????????# #??????????#%### | | ??????????# d @ #??????????#!## | | ???????????# # #??????????# ## | | ???????????## #??????????# ### | | ????????????## ##??????????# #?#### | | ?????????????##### ##???###?????# #????## | | ?????????????????### ####????# ?????# #????## | | ???????????????????## #??????## ###### ###### | | ????????????????????## !##??## ## && | | ?????????????????????# %#???# ####### | | ?????????????????????#!!! ####### #?????# | | ?????????????????????####%#### ????????# #?????? | | ?????????????????????????"#??##??????????# #?????? | | ??????????????????????????#??????????????# #?????? | | ?????????????????????????????????????????# #?????? | | ?????????????????????????????????????????# #?????? | | ????????????????????????????????????????? ?????? | | ????????????????????????????????????????? ?????? | | ????????????????????????????????????????? ?????? | | ????????????????????????????????????????? ?????? | | ????????????????????????????????????????? ?????? | | ????????????????????????????????????????? ?????? | | ????????????????????????????????????????? ?????? | | ????????????????????????????????????????? ?????? | | ?????????????????????????????????????????????????? | | ?????????????????????????????????????????????????? | +----------------------------------------------------+ Best States ------------- Heat Dissipation 25 Energy Generation 14 Energy Capacity 280 Matter Stores 300 Matter Capacity 300 Sight Range 16 Robot Scan Range 20 Terrain Scan Density 10 Evasion (%) 40 Targeting Accuracy 5 Recoil Reduction 2 Item Schematics ----------------- None Robot Schematics ------------------ None Fabricated ------------ Nothing Repaired ---------- Nothing Studied --------- None Alien Tech Used ----------------- None Achievements -------------- None Challenges ------------ None Game ------ Seed HardlightArchitectForcegen Manual? 0 Play Time 00:07:21 Cumulative 79.6 hours Start 2026.02.18 @ 20:05:23 End 2026.02.18 @ 20:15:39 Sessions 1 Manual Loads 0 Difficulty Rogue Special Mode None Game No. 133 Rogue 133 Adventurer 0 Explorer 0 Win Type - Total 0 Types 0/0/0/0/0/0/0/0/0/0 Lore% 37 Gallery% 45 Achievement% 31 Wizard Run 0 Options --------- Layout 1 ASCII 0 Keyboard 1 Movement Arrows Keybinds 0 Fullscreen 1 Font 24/Smallcaps Map View 50x35 Zoom Use 0% Tactical HUD 1 Map Filters NONE Filters NONE Steam 1 RUN: 823c36f6-ce41-4d90-bd04-156a51612237